{"text_format":"1","workbook":"xlsx","n_sheets":2,"sheets":["Sheet1","Sheet2"],"not_rendered":{"charts":0,"images":0,"macros":1,"external_links":0,"defined_names":1,"comments":0,"pivot_tables":0},"unopened":[],"bounds":{"document_bytes":16777216,"sheet_cells":100000,"rows_first":2000,"rows_last":500,"rows_between":2000,"halvings":0,"cell_chars":16384,"cell_head_chars":4096},"cells_cut":0,"cells_raw":0,"read":"whole","date_system":"1900"}

{"sheet":"Sheet1","index":0,"n_rows":21,"n_cols":4,"rows_kept":21,"cut":false,"hidden":false,"merged":[]}
["Name","Lower","Upper","Proper"]
["aLex tHompSon",{"$f":"LOWER(A2)","v":"alex thompson"},{"$f":"UPPER(B2)","v":"ALEX THOMPSON"},{"$f":"PROPER(A2)","v":"Alex Thompson"}]
["mAria gonzAles",{"$f":"LOWER(A3)","v":"maria gonzales"},{"$f":"UPPER(B3)","v":"MARIA GONZALES"},{"$f":"PROPER(A3)","v":"Maria Gonzales"}]
["DAVID WILLIams","david williams","DAVID WILLIAMS","David Williams"]
["sophIE turNer","sophie turner","SOPHIE TURNER","Sophie Turner"]
["michael hArris","michael harris","MICHAEL HARRIS","Michael Harris"]
["EMMA clark","emma clark","EMMA CLARK","Emma Clark"]
["dAnIel browN","daniel brown","DANIEL BROWN","Daniel Brown"]
["OLIVIA lewis","olivia lewis","OLIVIA LEWIS","Olivia Lewis"]
["joShua whiTe","joshua white","JOSHUA WHITE","Joshua White"]
["isABella scott","isabella scott","ISABELLA SCOTT","Isabella Scott"]
["ETHan robInson","ethan robinson","ETHAN ROBINSON","Ethan Robinson"]
["chloe KING","chloe king","CHLOE KING","Chloe King"]
["JAMES Baker","james baker","JAMES BAKER","James Baker"]
["Ava PHILLIPS","ava phillips","AVA PHILLIPS","Ava Phillips"]
["benJAMin Young","benjamin young","BENJAMIN YOUNG","Benjamin Young"]
["MIA mitchEll","mia mitchell","MIA MITCHELL","Mia Mitchell"]
["henRy martINEZ","henry martinez","HENRY MARTINEZ","Henry Martinez"]
["LILY peRez","lily perez","LILY PEREZ","Lily Perez"]
["SAMUEL Adams","samuel adams","SAMUEL ADAMS","Samuel Adams"]
["gracE warD","grace ward","GRACE WARD","Grace Ward"]

{"sheet":"Sheet2","index":1,"n_rows":21,"n_cols":2,"rows_kept":21,"cut":false,"hidden":false,"merged":[]}
["Name","Proper"]
["ALEX THOMPSON"]
["MARIA GONZALES"]
["DAVID WILLIAMS"]
["SOPHIE TURNER"]
["MICHAEL HARRIS"]
["EMMA CLARK"]
["DANIEL BROWN"]
["OLIVIA LEWIS"]
["JOSHUA WHITE"]
["ISABELLA SCOTT"]
["ETHAN ROBINSON"]
["CHLOE KING"]
["JAMES BAKER"]
["AVA PHILLIPS"]
["BENJAMIN YOUNG"]
["MIA MITCHELL"]
["HENRY MARTINEZ"]
["LILY PEREZ"]
["SAMUEL ADAMS"]
["GRACE WARD"]